fUSD/lending_fUSD_20250606
["ID","MTS","AMOUNT","RATE_DAILY","PERIOD"]
[364630482,1749168049700,150.0,0.000356,120]
[364630483,1749168091748,351.0,0.00035616,120]
[364630484,1749168111438,150.0,0.000356,120]
[364630487,1749168172146,1004.0,0.00035616,120]
[364630488,1749168173487,150.0,0.000356,120]
[364630489,1749168201522,10000.0,0.00035,120]
[364630491,1749168234987,150.0,0.000356,120]
[364630492,1749168290203,181.7,0.00028673,120]
[364630493,1749168296905,150.0,0.000356,120]
[364630494,1749168314149,2898.23,0.00035616,120]
[364630495,1749168322307,2589.0,0.00035616,120]
[364630496,1749168326739,300.0,0.00033904,120]
[364630497,1749168334753,150.0,0.00035616,120]
[364630516,1749168358668,150.0,0.000356,120]
[364630520,1749168420455,150.0,0.000356,120]
[364630542,1749168444449,157.68,0.00013699,2]
[364630544,1749168482864,150.0,0.000356,120]
[364630545,1749168545360,150.0,0.000356,120]
[364630551,1749168607388,150.0,0.000356,120]
[364630629,1749168632567,-174.21786408,0.00024832,2]
[364630631,1749168632577,-2626.15621001,0.00024931,2]
[364630633,1749168632588,-574.6,0.00024931,2]
[364630635,1749168632599,-1919.20314131,0.00024931,2]
[364630638,1749168632617,-534.04064868,0.00024931,2]
[364630640,1749168632627,-500.0,0.00024932,2]
[364630642,1749168632636,-559.83218284,0.000259,14]
[364630644,1749168632645,-1200.0,0.00025998,2]
[364630646,1749168632655,-200.0,0.00025999,10]
[364630648,1749168632664,-4545.99708,0.00026,2]
[364630650,1749168632674,-207.4,0.00026256,2]
[364630652,1749168632683,-6312.40465053,0.00026271,2]
[364630654,1749168632695,-2271.45304355,0.00026271,2]
[364630657,1749168632705,-798.32798818,0.00026271,2]
[364630661,1749168632736,-520.1,0.00026271,2]
[364630663,1749168632748,-1777.55839664,0.00026271,2]
[364630665,1749168632758,-559.83218276,0.00026383,15]
[364630667,1749168632767,-300.26,0.00026549,2]
[364630669,1749168632777,-695.92,0.00026858,2]
[364630671,1749168632787,-559.83218276,0.00026866,16]
[364630673,1749168632797,-559.83218276,0.00027348,16]
[364630675,1749168632806,-215.0738,0.00027625,2]
[364630677,1749168632815,-559.83218276,0.00027831,17]
[364630679,1749168632825,-871.85907222,0.00027981,2]
[364630682,1749168632836,-5880.0,0.00027981,2]
[364630684,1749168632847,-3550.000005,0.00027981,2]
[364630686,1749168632858,-1300.0,0.00027981,2]
[364630688,1749168632870,-5790.80092278,0.00027981,2]
[364630690,1749168632880,-4859.19907722,0.00028,2]
[364630692,1749168632892,-300.0,0.00028,2]
[364630695,1749168632907,-864.14261092,0.00028,2]
[364630697,1749168632922,-3976.65831186,0.00028,2]
[364630699,1749168632931,-1000.0,0.00028016,2]
[364630701,1749168632942,-9638.9908152,0.00028017,2]
[364630703,1749168632952,-3024.55,0.00028108,2]
[364630705,1749168632961,-8308.55,0.00028124,2]
[364630707,1749168632971,-1680.0,0.00028261,2]
[364630709,1749168632986,-3710.63,0.00028283,30]
[364630711,1749168632999,-559.83218276,0.00028314,18]
[364630713,1749168633008,-221.0,0.00028599,30]
[364630715,1749168633018,-1736.66,0.00028732,2]
[364630717,1749168633027,-559.83218276,0.00028797,19]
[364630719,1749168633037,-200.0,0.00028806,2]
[364630721,1749168633047,-5290.26702677,0.00028855,2]
[364630723,1749168633056,-4362.3,0.0002886,2]
[364630726,1749168633066,-166.18,0.00028892,2]
[364630728,1749168633076,-155.0,0.00028903,2]
[364630730,1749168633086,-4080.0,0.00028903,2]
[364630732,1749168633096,-7016.0,0.00028903,2]
[364630734,1749168633105,-223.0315306,0.00028994,2]
[364630736,1749168633116,-900.0,0.00029068,7]
[364630738,1749168633127,-500.0,0.00029068,7]
[364630740,1749168633137,-13982.62059059,0.00029097,2]
[364630742,1749168633147,-12752.38,0.00029121,2]
[364630744,1749168633157,-695.92,0.00029122,2]
[364630746,1749168633168,-1000.0,0.00029136,2]
[364630748,1749168633179,-559.83218276,0.00029279,20]
[364630750,1749168633189,-151.0,0.00029333,2]
[364630752,1749168633199,-19060.9448275,0.00029351,2]
[364631207,1749168637752,-883.0,0.00028903,2]
[364631208,1749168637762,-116.42965019,0.00029351,2]
[364631209,1749168637940,-938.81927437,0.00029351,2]
[364631210,1749168637959,-1347.07606402,0.00029351,2]
[364631211,1749168637971,-1813.93734884,0.00029351,2]
[364631212,1749168637982,-165.38,0.00029453,2]
[364631213,1749168637991,-97.38667884,0.00029762,21]
[364631214,1749168638003,-462.44550392,0.00029762,21]
[364631215,1749168638012,-900.0,0.0002989,7]
[364631217,1749168638022,-2033.33,0.000299,2]
[364631219,1749168638032,-5710.30777312,0.000299,2]
[364631221,1749168638041,-161.0,0.0003,3]
[364631223,1749168638050,-2033.33,0.0003,2]
[364631225,1749168638060,-10000.0,0.0003,5]
[364631226,1749168638070,-4109.82372296,0.0003,3]
[364631415,1749168639861,-852.0,0.00028903,2]
[364631417,1749168639870,-5890.17627704,0.0003,3]
[364631419,1749168639880,-160.0,0.0003,14]
[364631421,1749168639889,-250.0,0.00030008,2]
[364631423,1749168639903,-154.78291272,0.00030063,2]
[364631425,1749168639912,-3284.80845179,0.00030064,2]
[364631427,1749168639924,-285.13839377,0.00030082,30]
[364631429,1749168639933,-500.0,0.000301,2]
[364631431,1749168639943,-589.06124686,0.000301,2]
[364631433,1749168639953,-500.0,0.000301,2]
[364631435,1749168639963,-608.656428,0.000301,2]
[364631438,1749168639973,-172.22717232,0.000301,2]
[364631440,1749168639983,-225.0,0.000301,2]
[364631442,1749168639993,-500.0,0.000301,2]
[364631444,1749168640002,-500.0,0.000301,2]
[364631446,1749168640012,-500.0,0.000301,2]
[364631447,1749168640021,-500.0,0.000301,2]
[364631449,1749168640031,-500.0,0.000301,2]
[364631452,1749168640040,-231.04780773,0.000301,2]
[364631454,1749168640049,-500.0,0.000301,2]
[364631455,1749168640059,-500.0,0.000301,2]
[364631457,1749168640068,-500.0,0.000301,2]
[364631459,1749168640078,-2033.33,0.000301,2]
[364631461,1749168640087,-2033.33,0.000301,2]
[364631463,1749168640098,-5710.30777304,0.00030101,2]
[364631466,1749168640108,-300.0,0.00030137,80]
[364631468,1749168640117,-169.21,0.00030153,2]
[364631470,1749168640127,-169.21,0.00030153,2]
[364631472,1749168640136,-141757.420658,0.00030154,2]
[364631473,1749168640145,-150.0,0.00030163,2]
[364631475,1749168640155,-500.0,0.00030163,7]
[364631477,1749168640165,-500.0,0.00030163,7]
[364631479,1749168640176,-785.08,0.00030164,7]
[364631481,1749168640185,-770.52,0.00030164,7]
[364631484,1749168640195,-301.21524239,0.00030164,7]
[364631486,1749168640207,-480.0,0.00030164,7]
[364631487,1749168640216,-480.0,0.00030164,7]
[364631489,1749168640225,-555.41675884,0.00030164,7]
[364631491,1749168640235,-480.0,0.00030164,7]
[364631493,1749168640246,-480.0,0.00030164,7]
[364631495,1749168640255,-480.0,0.00030164,7]
[364631497,1749168640264,-259.29566738,0.00030164,7]
[364631500,1749168640274,-529.58,0.00030164,7]
[364631501,1749168640283,-480.0,0.00030164,7]
[364631503,1749168640295,-480.0,0.00030164,7]
[364631505,1749168640314,-480.0,0.00030164,7]
[364631507,1749168640334,-527.73,0.00030164,7]
[364631509,1749168640346,-480.0,0.00030164,7]
[364631511,1749168640355,-480.0,0.00030164,7]
[364631513,1749168640365,-151.47796068,0.00030164,7]
[364631515,1749168640375,-480.0,0.00030164,7]
[364631517,1749168640385,-269.11887626,0.00030164,7]
[364631520,1749168640395,-480.0,0.00030164,7]
[364631522,1749168640405,-480.0,0.00030164,7]
[364631524,1749168640416,-756.84,0.00030164,7]
[364631525,1749168640426,-480.0,0.00030164,7]
[364631528,1749168640436,-480.0,0.00030164,7]
[364631529,1749168640445,-372.80127101,0.00030164,7]
[364631531,1749168640454,-480.0,0.00030164,7]
[364631533,1749168640464,-480.0,0.00030164,7]
[364631536,1749168640474,-480.0,0.00030164,7]
[364631538,1749168640483,-492.47,0.00030164,7]
[364631539,1749168640493,-480.0,0.00030164,7]
[364631541,1749168640502,-370.0,0.00030164,7]
[364631544,1749168640512,-1402.04,0.00030164,7]
[364631546,1749168640521,-480.0,0.00030164,7]
[364631548,1749168640531,-486.11,0.00030164,7]
[364631550,1749168640540,-480.0,0.00030164,7]
[364631552,1749168640550,-480.0,0.00030164,7]
[364631554,1749168640559,-480.0,0.00030164,7]
[364631555,1749168640568,-517.25,0.00030164,7]
[364631558,1749168640578,-501.45,0.00030164,7]
[364631560,1749168640588,-599.42,0.00030164,7]
[364631562,1749168640599,-480.0,0.00030164,7]
[364631564,1749168640608,-480.0,0.00030164,7]
[364631566,1749168640617,-573.18,0.00030164,7]
[364631567,1749168640626,-480.0,0.00030164,7]
[364631570,1749168640636,-480.0,0.00030164,7]
[364631572,1749168640645,-1171.26,0.00030164,7]
[364631574,1749168640655,-1015.73,0.00030164,7]
[364631576,1749168640664,-480.0,0.00030164,7]
[364631577,1749168640673,-480.0,0.00030164,7]
[364631579,1749168640683,-1112.95,0.00030164,7]
[364631581,1749168640692,-480.0,0.00030164,7]
[364631583,1749168640701,-761.04,0.00030164,7]
[364631585,1749168640710,-480.0,0.00030164,7]
[364631587,1749168640720,-598.18,0.00030164,7]
[364631589,1749168640729,-708.12,0.00030164,7]
[364631591,1749168640739,-1105.42,0.00030164,7]
[364631593,1749168640748,-480.0,0.00030164,7]
[364631596,1749168640757,-480.0,0.00030164,7]
[364631597,1749168640766,-480.0,0.00030164,7]
[364631600,1749168640777,-488.49,0.00030164,7]
[364631602,1749168640786,-480.0,0.00030164,7]
[364631604,1749168640795,-480.0,0.00030164,7]
[364631605,1749168640805,-480.0,0.00030164,7]
[364631607,1749168640814,-578.26,0.00030164,7]
[364631609,1749168640823,-654.23,0.00030164,7]
[364631611,1749168640832,-869.83,0.00030164,7]
[364631613,1749168640842,-496.83,0.00030164,7]
[364631615,1749168640851,-579.32,0.00030164,7]
[364631616,1749168640861,-480.0,0.00030164,7]
[364631617,1749168640870,-878.97,0.00030164,7]
[364631618,1749168640880,-575.25,0.00030164,7]
[364631619,1749168640890,-480.0,0.00030164,7]
[364631620,1749168640904,-482.1,0.00030164,7]
[364631621,1749168640914,-612.12,0.00030164,7]
[364631622,1749168640924,-480.0,0.00030164,7]
[364631623,1749168640933,-480.0,0.00030164,7]
[364631624,1749168641150,-836.57,0.00030164,7]
[364631625,1749168641166,-480.0,0.00030164,7]
[364631626,1749168641179,-910.43,0.00030164,7]
[364631627,1749168641189,-480.0,0.00030164,7]
[364631628,1749168641199,-571.4,0.00030164,7]
[364631629,1749168641209,-566.4,0.00030164,7]
[364631630,1749168641219,-480.0,0.00030164,7]
[364631631,1749168641230,-480.0,0.00030164,7]
[364631632,1749168641241,-480.0,0.00030164,7]
[364631633,1749168641251,-480.0,0.00030164,7]
[364631634,1749168641261,-480.0,0.00030164,7]
[364631635,1749168641272,-672.22,0.00030164,7]
[364631636,1749168641282,-480.0,0.00030164,7]
[364631637,1749168641292,-480.0,0.00030164,7]
[364631638,1749168641302,-874.21,0.00030164,7]
[364631639,1749168641312,-480.0,0.00030164,7]
[364631640,1749168641322,-480.0,0.00030164,7]
[364631641,1749168641332,-480.0,0.00030164,7]
[364631642,1749168641341,-932.63,0.00030164,7]
[364631643,1749168641351,-569.23,0.00030164,7]
[364631644,1749168641361,-718.24,0.00030164,7]
[364631645,1749168641371,-531.63,0.00030164,7]
[364631646,1749168641380,-482.23,0.00030164,7]
[364631647,1749168641390,-480.0,0.00030164,7]
[364631648,1749168641399,-480.0,0.00030164,7]
[364631649,1749168641409,-717.15,0.00030164,7]
[364631650,1749168641419,-480.0,0.00030164,7]
[364631651,1749168641432,-480.0,0.00030164,7]
[364631652,1749168641442,-480.0,0.00030164,7]
[364631653,1749168641451,-974.45,0.00030164,7]
[364631654,1749168641461,-480.0,0.00030164,7]
[364631655,1749168641472,-480.0,0.00030164,7]
[364631656,1749168641482,-1071.68,0.00030164,7]
[364631657,1749168641492,-480.0,0.00030164,7]
[364631658,1749168641502,-480.0,0.00030164,7]
[364631659,1749168641512,-873.92,0.00030164,7]
[364631660,1749168641521,-480.0,0.00030164,7]
[364631661,1749168641532,-480.0,0.00030164,7]
[364631662,1749168641542,-480.0,0.00030164,7]
[364631663,1749168641551,-943.02,0.00030164,7]
[364631664,1749168641561,-502.01,0.00030164,7]
[364631665,1749168641571,-507.97,0.00030164,7]
[364631666,1749168641581,-507.06,0.00030164,7]
[364631667,1749168641592,-480.0,0.00030164,7]
[364631668,1749168641602,-480.0,0.00030164,7]
[364631669,1749168641613,-480.0,0.00030164,7]
[364631670,1749168641623,-1560.43,0.00030164,7]
[364631671,1749168641633,-480.0,0.00030164,7]
[364631672,1749168641643,-480.0,0.00030164,7]
[364631673,1749168641653,-480.0,0.00030164,7]
[364631674,1749168641664,-480.0,0.00030164,7]
[364631675,1749168641677,-558.66,0.00030164,7]
[364631676,1749168641689,-577.19,0.00030164,7]
[364631677,1749168641699,-719.44,0.00030164,7]
[364631678,1749168641709,-1322.07,0.00030164,7]
[364631679,1749168641718,-480.0,0.00030164,7]
[364631680,1749168641728,-1301.07,0.00030164,7]
[364631681,1749168641737,-480.0,0.00030164,7]
[364631682,1749168641747,-720.82,0.00030164,7]
[364631683,1749168641756,-480.0,0.00030164,7]
[364631684,1749168641766,-356.73054734,0.00030164,7]
[364631685,1749168641775,-794.58,0.00030164,7]
[364631686,1749168641785,-480.0,0.00030164,7]
[364631687,1749168641794,-696.15,0.00030164,7]
[364631688,1749168641804,-480.0,0.00030164,7]
[364631689,1749168641814,-601.51,0.00030164,7]
[364631690,1749168641824,-890.74,0.00030164,7]
[364631691,1749168641834,-855.9,0.00030164,7]
[364631692,1749168641844,-480.0,0.00030164,7]
[364631693,1749168641853,-864.2,0.00030164,7]
[364631694,1749168641863,-1406.16,0.00030164,7]
[364631695,1749168641872,-575.82,0.00030164,7]
[364631696,1749168641882,-480.0,0.00030164,7]
[364631697,1749168641891,-685.35,0.00030164,7]
[364631698,1749168641905,-480.0,0.00030164,7]
[364631699,1749168641915,-480.0,0.00030164,7]
[364631700,1749168641929,-558.82,0.00030164,7]
[364631701,1749168641943,-480.0,0.00030164,7]
[364631702,1749168641953,-480.0,0.00030164,7]
[364631703,1749168641963,-520.0,0.00030164,7]
[364631704,1749168641972,-793.1,0.00030164,7]
[364631705,1749168641984,-567.11,0.00030164,7]
[364631706,1749168641995,-600.0,0.00030164,30]
[364631707,1749168642005,-480.0,0.00030164,7]
[364631708,1749168642015,-480.0,0.00030164,7]
[364631709,1749168642026,-2666.2,0.00030164,7]
[364631710,1749168642036,-561.14,0.00030164,7]
[364631711,1749168642046,-999.94,0.00030164,7]
[364631712,1749168642056,-480.0,0.00030164,7]
[364631713,1749168642066,-1272.61,0.00030164,7]
[364631714,1749168642076,-2165.65,0.00030164,7]
[364631715,1749168642086,-1035.66,0.00030164,7]
[364631716,1749168642095,-602.09,0.00030164,7]
[364631717,1749168642105,-480.0,0.00030164,7]
[364631718,1749168642115,-1179.43,0.00030164,7]
[364631719,1749168642126,-480.0,0.00030164,7]
[364631720,1749168642136,-480.0,0.00030164,7]
[364631721,1749168642146,-480.0,0.00030164,7]
[364631722,1749168642156,-480.0,0.00030164,7]
[364631723,1749168642166,-2933.14,0.00030164,7]
[364631724,1749168642181,-1391.23,0.00030164,7]
[364631725,1749168642191,-480.0,0.00030164,7]
[364631726,1749168642201,-820.22,0.00030164,7]
[364631727,1749168642211,-402.25,0.00030164,7]
[364631728,1749168642221,-480.0,0.00030164,7]
[364631729,1749168642231,-2358.1,0.00030164,7]
[364631730,1749168642241,-3410.36,0.00030164,7]
[364631731,1749168642251,-480.0,0.00030164,7]
[364631732,1749168642261,-480.0,0.00030164,7]
[364631733,1749168642270,-1548.12,0.00030164,7]
[364631734,1749168642280,-1473.11,0.00030164,7]
[364631735,1749168642291,-573.75,0.00030164,7]
[364631736,1749168642302,-880.77,0.00030164,7]
[364631737,1749168642311,-480.0,0.00030164,7]
[364631738,1749168642321,-480.0,0.00030164,7]
[364631739,1749168642331,-480.0,0.00030164,7]
[364631740,1749168642341,-1000.98,0.00030164,7]
[364631741,1749168642351,-480.0,0.00030164,7]
[364631742,1749168642361,-3617.87,0.00030164,7]
[364631743,1749168642371,-4131.2,0.00030164,7]
[364631744,1749168642380,-1319.67,0.00030164,7]
[364631745,1749168642390,-480.0,0.00030164,7]
[364631746,1749168642400,-1456.344562,0.00030164,7]
[364631747,1749168642410,-610.2,0.00030164,7]
[364631748,1749168642420,-480.0,0.00030164,7]
[364631749,1749168642435,-585.31,0.00030164,7]
[364631750,1749168642444,-480.0,0.00030164,7]
[364631751,1749168642454,-8570.53,0.00030164,7]
[364631752,1749168642463,-480.0,0.00030164,7]
[364631753,1749168642473,-49253.57,0.00030164,7]
[364631754,1749168642483,-570.98,0.00030164,7]
[364631755,1749168642492,-480.0,0.00030164,7]
[364631756,1749168642502,-480.0,0.00030164,7]
[364631757,1749168642513,-2329.57,0.00030164,7]
[364631758,1749168642522,-480.0,0.00030164,7]
[364631759,1749168642532,-717.06,0.00030164,7]
[364631760,1749168642542,-480.0,0.00030164,7]
[364631761,1749168642551,-480.0,0.00030164,7]
[364631762,1749168642560,-1289.18,0.00030164,7]
[364631763,1749168642569,-844.76,0.00030164,7]
[364631764,1749168642579,-6808.96,0.00030164,7]
[364631765,1749168642589,-480.0,0.00030164,7]
[364631766,1749168642599,-657.94,0.00030164,7]
[364631767,1749168642608,-480.0,0.00030164,7]
[364631768,1749168642618,-480.0,0.00030164,7]
[364631769,1749168642628,-1043.37,0.00030164,7]
[364631770,1749168642638,-863.92,0.00030164,7]
[364631771,1749168642647,-850.25,0.00030164,7]
[364631772,1749168642657,-480.0,0.00030164,7]
[364631773,1749168642667,-3413.33,0.00030164,7]
[364631774,1749168642682,-1023.38,0.00030164,7]
[364631775,1749168642692,-480.0,0.00030164,7]
[364631776,1749168642701,-1000.0,0.00030164,2]
[364631777,1749168642711,-480.0,0.00030164,7]
[364631778,1749168642721,-480.0,0.00030164,7]
[364631779,1749168642731,-480.0,0.00030164,7]
[364631780,1749168642740,-1322.87,0.00030164,7]
[364631781,1749168642749,-1553.78,0.00030164,7]
[364631783,1749168642759,-1093.49,0.00030164,7]
[364631785,1749168642768,-500.0,0.00030164,2]
[364631787,1749168642777,-480.0,0.00030164,7]
[364631789,1749168642787,-1601.105444,0.00030164,7]
[364631791,1749168642796,-500.0,0.00030164,2]
[364631793,1749168642805,-480.0,0.00030164,7]
[364631795,1749168642814,-1000.0,0.00030164,7]
[364631797,1749168642823,-725.09,0.00030164,7]
[364631799,1749168642833,-480.0,0.00030164,7]
[364631801,1749168642842,-2709.98,0.00030164,7]
[364631803,1749168642851,-1607.6,0.00030164,7]
[364631805,1749168642860,-616.83,0.00030164,7]
[364631807,1749168642870,-616.72,0.00030164,7]
[364631809,1749168642879,-1401.09,0.00030164,7]
[364631811,1749168642889,-334.5,0.00030164,7]
[364631813,1749168642900,-2754.63,0.00030164,7]
[364631815,1749168642909,-708.47,0.00030164,7]
[364631817,1749168642919,-1459.12,0.00030164,7]
[364631818,1749168642934,-799.11,0.00030164,7]
[364631821,1749168642945,-1257.01,0.00030164,7]
[364631822,1749168642955,-2874.4,0.00030164,7]
[364631823,1749168642964,-480.0,0.00030164,7]
[364631824,1749168642973,-460.0,0.00030164,7]
[364631825,1749168642983,-541.61,0.00030164,7]
[364631826,1749168642993,-480.0,0.00030164,7]
[364631827,1749168643003,-405.69,0.00030164,7]
[364631828,1749168643012,-1231.27,0.00030164,7]
[364631829,1749168643022,-480.0,0.00030164,7]
[364631830,1749168643031,-805.68,0.00030164,7]
[364631831,1749168643040,-1034.18,0.00030164,7]
[364631832,1749168643050,-609.29,0.00030164,7]
[364631833,1749168643059,-2659.74,0.00030164,7]
[364631834,1749168643069,-480.0,0.00030164,7]
[364631835,1749168643078,-702.13,0.00030164,7]
[364631836,1749168643088,-480.0,0.00030164,7]
[364631837,1749168643097,-3468.04,0.00030164,7]
[364631838,1749168643106,-480.0,0.00030164,7]
[364631839,1749168643116,-1061.34,0.00030164,7]
[364631840,1749168643125,-504.75,0.00030164,7]
[364631841,1749168643134,-11988.08,0.00030164,7]
[364631842,1749168643144,-911.84,0.00030164,7]
[364631843,1749168643153,-1254.1,0.00030164,7]
[364631844,1749168643163,-480.0,0.00030164,7]
[364631845,1749168643172,-770.87,0.00030164,7]
[364631846,1749168643186,-666.94,0.00030164,7]
[364631847,1749168643195,-480.0,0.00030164,7]
[364631848,1749168643204,-2631.0,0.00030164,7]
[364631849,1749168643214,-480.0,0.00030164,7]
[364631850,1749168643223,-807.27,0.00030164,7]
[364631851,1749168643233,-480.0,0.00030164,7]
[364631852,1749168643243,-1523.13,0.00030164,7]
[364631853,1749168643252,-480.0,0.00030164,7]
[364631854,1749168643261,-480.0,0.00030164,7]
[364631855,1749168643271,-763.04,0.00030164,7]
[364631856,1749168643280,-480.0,0.00030164,7]
[364631857,1749168643290,-429.63660907,0.00030164,7]
[364631858,1749168643646,-359.28339093,0.00030164,7]
[364631859,1749168643657,-11.92023985,0.00030164,7]
[364631860,1749168643668,-468.07976015,0.00030164,7]
[364631861,1749168643680,-933.52023985,0.00030164,7]
[364631862,1749168643707,-305.75976015,0.00030164,7]
[364631863,1749168643716,-480.0,0.00030164,7]
[364631864,1749168643725,-480.0,0.00030164,7]
[364631865,1749168643734,-480.0,0.00030164,7]
[364631866,1749168643743,-598.73,0.00030164,7]
[364631867,1749168643752,-756.95,0.00030164,7]
[364631868,1749168643762,-1572.8,0.00030164,7]
[364631869,1749168643771,-480.0,0.00030164,7]
[364631870,1749168643779,-480.0,0.00030164,7]
[364631871,1749168643789,-3761.51,0.00030164,7]
[364631872,1749168643798,-460.0,0.00030164,7]
[364631873,1749168643807,-480.0,0.00030164,7]
[364631874,1749168643816,-885.48,0.00030164,7]
[364631875,1749168643826,-480.0,0.00030164,7]
[364631876,1749168643835,-121.10023983,0.00030164,7]
[364631906,1749168646012,-358.89976017,0.00030164,7]
[364631907,1749168646023,-2161.76023973,0.00030164,7]
[364631908,1749168646051,-1858.412075,0.00030164,7]
[364631909,1749168646066,-428.46768527,0.00030164,7]
[364631910,1749168646076,-480.0,0.00030164,7]
[364631911,1749168646085,-107.63231473,0.00030164,7]
[364631914,1749168669227,150.0,0.000356,120]
[364631916,1749168730991,150.0,0.000356,120]
[364631917,1749168793258,150.0,0.000356,120]
[364631919,1749168855010,150.0,0.000356,120]
[364631921,1749168917083,150.0,0.000356,120]
[364631923,1749168978479,2831.43,0.00035616,120]
[364631924,1749168978868,150.0,0.000356,120]
[364631925,1749169040694,150.0,0.000356,120]
[364631927,1749169102421,150.0,0.000356,120]
[364631934,1749169165159,150.0,0.000356,120]
[364631936,1749169226649,164.15772896,0.000356,120]
[364631938,1749169235528,636.50617932,0.00024566,2]
[364631941,1749169489242,151.88,0.00013699,2]
[364631948,1749169509187,1748.17764492,0.0002,2]
[364631949,1749169509208,2851.92382424,0.0002,2]
[364631950,1749169509230,2851.92382424,0.0002,2]
[364631951,1749169509253,2851.92382424,0.0002,2]
[364631952,1749169509275,2851.92382424,0.0002,2]
[364631953,1749169509296,2851.92382424,0.0002,2]
[364631954,1749169509317,2851.92382424,0.0002,2]
[364631955,1749169509338,2851.92382424,0.0002,2]
[364631956,1749169509362,2851.92382424,0.0002,2]
[364631957,1749169509386,2851.92382424,0.0002,2]
[364631958,1749169509411,2160.3251334,0.0002,2]
[364631959,1749169509435,23230.84857143,0.0002,2]
[364631960,1749169509459,23230.84857143,0.0002,2]
[364631961,1749169509482,23230.84857143,0.0002,2]
[364631962,1749169509506,23230.84857143,0.0002,2]
[364631963,1749169509529,23230.84857143,0.0002,2]
[364631964,1749169509554,23230.84857143,0.0002,2]
[364631965,1749169509579,23230.84857143,0.0002,2]
[364631966,1749169509603,23230.84857143,0.0002,2]
[364631967,1749169509626,23230.84857143,0.0002,2]
[364631968,1749169509650,23230.84857143,0.0002,2]
[364631969,1749169509674,23230.84857143,0.0002,2]
[364631970,1749169509696,23230.84857143,0.0002,2]
[364631971,1749169509720,23230.84857143,0.0002,2]
[364631972,1749169509743,23230.84857143,0.0002,2]
[364631973,1749169509766,23230.84857143,0.0002,2]
[364631974,1749169509789,23230.84857143,0.0002,2]
[364631975,1749169509811,23230.84857143,0.0002,2]
[364631976,1749169509834,23230.84857143,0.0002,2]
[364631977,1749169509859,11278.423,0.0002,2]
[364631978,1749169509879,11278.423,0.0002,2]
[364631979,1749169509901,11278.423,0.0002,2]
[364631980,1749169509921,11278.423,0.0002,2]
[364631981,1749169509941,11278.423,0.0002,2]
[364631982,1749169509961,11278.423,0.0002,2]
[364631983,1749169509982,11278.423,0.0002,2]
[364631984,1749169510001,11278.423,0.0002,2]
[364631985,1749169510023,11278.423,0.0002,2]
[364631986,1749169510043,11278.423,0.0002,2]
[364631987,1749169510063,11278.423,0.0002,2]
[364631988,1749169510083,11278.423,0.0002,2]
[364631989,1749169510103,11278.423,0.0002,2]
[364631990,1749169510123,11278.423,0.0002,2]
[364631991,1749169510146,11278.423,0.0002,2]
[364631992,1749169510168,11278.423,0.0002,2]
[364631993,1749169510190,11278.423,0.0002,2]